Cogmind - Beta 11.1 @@@ ROGUE MODE // 2022.06.03 @ 12:31:46 Player: ChromeKnight Result: Destroyed by Y-64 Sentinel with KE Penetrator Performance ------------- Evolutions (6) 3000 Regions Visited (12) 2400 Robots Destroyed (115) 575 Value Destroyed (3473) 3473 Prototype IDs (23) 460 Alien Tech Used (1) 200 Bonus (542) 542 TOTAL SCORE: 10650 Bonus ------- High Alert Combat Kills 242 Met Zhirov 300 Cogmind --------- Core Integrity 0/1150 Matter 300/300 Energy 100/100 System Corruption 2% Temperature Cool (9) Movement Core (50) Location -4/Factory Parts ------- > --- POWER (1) -------- (None) > --- PROPULSION (2) --- (None) > --- UTILITY (14) ----- Advanced Signal Interpreter Improved Targeting Computer Advanced Target Analyzer Armor Integrity Analyzer Improved Weapon Cycler > --- WEAPON (2) ------- (None) > --- INVENTORY (5) ---- Kinecellerator Transdimensional Reconstructor Heavy Assault Cannon Peak State ------------ > --- POWER ------------ Reinforced Deuterium Engine > --- PROPULSION ------- Flexi-carbon Leg Armored Leg > --- UTILITY ---------- Improved Cryofiber Web Small Storage Unit Improved Signal Interpreter Active Sensor Suite Armor Integrity Analyzer Weapon Cycler Hacking Suite Hacking Suite > --- WEAPON ----------- Heavy Laser Cooled Particle Cannon > --- INVENTORY -------- Carbon-fiber Leg Large Matter Pod Kinecellerator Experimental Utility Shielding Authchip [Propulsion] Authchip [Device] Heavy Assault Cannon [Rating: 75] Favorites ----------- Power Light Nuclear Core Engine Ion Engine Power Core Light Nuclear Core Propulsion Light Treads Treads Light Treads Leg Armored Leg Hover Unit Cooled Airjet Flight Unit VTOL Module Utility Hacking Suite Device Cooling System Storage Large Storage Unit Processor Signal Interpreter Hackware Hacking Suite Protection Weapon Shielding Weapon Spread Laser Energy Gun Spread Laser Energy Cannon Cooled Particle Cannon Ballistic Gun Makeshift Shrapnel Gun Ballistic Cannon Heavy Assault Cannon Special Weapon Plasma Cutter Slashing Weapon Katana Piercing Weapon Force Lance Build | -11 -10 -9 -9 -7 -6 -6 -5 -5 -5 -5 -4 -4 ------- Run | Scr Mat Mat Min Zio Pro Fac Fac Upp Upp Zhi Pro Fac Slots Evolved 12 | . . 2 . . . 6 2 . . . . 2 Power . | . . . . . . . . . . . . . Propulsion . | . . . . . . . . . . . . . Utility 12 | . . 2 . . . 6 2 . . . . 2 Weapon . | . . . . . . . . . . . . . Parts Attached 156 | 6 16 35 2 . 11 52 8 4 1 5 5 11 Power 14 | 1 2 5 1 . . 4 1 . . . . . Engine 9 | 1 2 5 . . . 1 . . . . . . Core 5 | . . . 1 . . 3 1 . . . . . Reactor . | . . . . . . . . . . . . . Propulsion 41 | 2 5 13 . . 4 10 3 2 . 1 . 1 Treads 20 | 2 5 13 . . . . . . . . . . Leg 9 | . . . . . . 9 . . . . . . Wheel . | . . . . . . . . . . . . . Hover 3 | . . . . . . . 2 . . 1 . . Flight 9 | . . . . . 4 1 1 2 . . . 1 Utility 55 | 1 4 6 1 . 4 24 2 1 1 3 3 5 Device 23 | . 2 3 1 . 1 11 . . 1 . 2 2 Storage 5 | 1 2 . . . 1 . . . . 1 . . Processor 9 | . . 1 . . 1 4 . 1 . . . 2 Hackware 5 | . . . . . . 2 1 . . 1 . 1 Protection 13 | . . 2 . . 1 7 1 . . 1 1 . Artifact . | . . . . . . . . . . . . . Weapon 46 | 2 5 11 . . 3 14 2 1 . 1 2 5 Energy Gun 21 | 1 5 10 . . 1 4 . . . . . . Energy Cannon 7 | . . . . . . 6 1 . . . . . Ballistic Gun 3 | 1 . . . . . . . 1 . . . 1 Ballistic Cannon 5 | . . . . . . 1 1 . . 1 1 1 Launcher . | . . . . . . . . . . . . . Special Weapon 2 | . . 1 . . . 1 . . . . . . Impact Weapon . | . . . . . . . . . . . . . Slashing Weapon 5 | . . . . . 2 2 . . . . 1 . Piercing Weapon 3 | . . . . . . . . . . . . 3 Special Melee Weapon . | . . . . . . . . . . . . . Unidentified Prototypes 12 | . . 2 . . . 5 2 . . 2 . 1 Parts Lost 33 | . 1 2 . . 3 9 . 2 2 . 3 11 Power 3 | . 1 1 . . . 1 . . . . . . Propulsion 11 | . . 1 . . 2 3 . 2 1 . 1 1 Utility 14 | . . . . . 1 3 . . . . 2 8 Weapon 5 | . . . . . . 2 . . 1 . . 2 Highest Loss Streak 9 | . 1 1 . . 3 9 . 1 2 . 3 9 To Critical Strikes . | . . . . . . . . . . . . . Average Slot Usage (%) 87 | . 91 97 100 100 73 91 50 54 49 47 57 50 Engine 3 | . 8 10 3 . . . . . . . . . Core 3 | . . . 7 11 4 4 . . . . . . Treads 13 | . 27 21 22 22 7 . . . . . . . Leg 2 | . . . . . . 10 2 . . . . . Flight 1 | . . . . . 14 2 4 3 . . . 2 Device 10 | . 12 11 11 11 6 14 7 5 4 . 2 6 Storage 8 | . 14 11 11 11 11 6 1 . . 1 1 . Processor 10 | . . 6 11 11 11 17 5 9 11 11 11 16 Hackware 6 | . . . . . . 12 15 17 17 20 23 18 Protection 8 | . . 14 11 11 4 8 3 5 5 8 10 3 Energy Gun 13 | . 24 19 22 22 7 4 1 . . . . . Energy Cannon 1 | . . . . . . 4 1 . . . . . Naked Turns . | . . . . . . . . . . . . . Heaviest Build 40 | 11 32 36 36 34 34 40 39 7 7 5 9 8 Greatest Support 40 | 40 40 40 40 40 40 36 36 8 12 8 8 19 Greatest Overweight (x) 10 | . 4 10 . . . 10 2 2 2 . 1 2 Average Overweight (x) . | . . . . . . . . . . . . . Largest Inventory Capacity 15 | 8 15 15 15 15 15 8 8 5 5 5 5 5 Average Capacity 11 | 7 12 15 15 15 10 8 5 5 5 5 5 5 Most Carried 15 | 4 15 15 15 15 15 8 8 5 5 5 5 5 Average Carried 10 | 2 11 14 15 14 9 7 5 5 4 4 4 4 Final Capacity 15 | 8 15 15 15 15 8 8 5 5 5 5 5 5 Final Carried 15 | 4 15 15 15 15 6 8 5 5 5 5 5 4 Class Distribution -------------------- 41% | Scavenger-Mutant 20% | Mutant 18% | Hacker-Mutant 8% | Hacker-Scout Dominant Class ---------------- Mutant | -10/Materials Scavenger-Mutant | -9/Materials Scavenger-Mutant | -9/Mines Scavenger-Mutant | -7/Zion Sprinter | -6/Proximity Caves Hacker-Mutant | -6/Factory Hacker-Scout | -5/Factory Hacker-Scout | -5/Upper Caves Hacker-Scout | -5/Upper Caves Hacker-Mutant | -5/Zhirov Hacker-Mutant | -4/Proximity Caves Hacker-Mutant | -4/Factory Resources | -11 -10 -9 -9 -7 -6 -6 -5 -5 -5 -5 -4 -4 ----------- Run | Scr Mat Mat Min Zio Pro Fac Fac Upp Upp Zhi Pro Fac Matter Collected 2135 | 270 192 340 20 . 29 722 . 110 105 184 78 85 Remotely . | . . . . . . . . . . . . . Salvage Created 4014 | 59 565 1125 319 . . 1556 . 132 . 144 . 114 Parts 235 | 6 35 76 27 . . 75 . 8 . 1 . 7 Haulers Intercepted 8 | . 2 5 . . . 1 . . . . . . Recyclers Shooed 2 | . 1 1 . . . . . . . . . . Parts Field Recycled . | . . . . . . . . . . . . . Retrieved Matter . | . . . . . . . . . . . . . Parts Self-Destructed 8 | . . . . . . . . 7 1 . . . Prevented 2 | . . . . . . . . 2 . . . . Kills | -11 -10 -9 -9 -7 -6 -6 -5 -5 -5 -5 -4 -4 ------- Run | Scr Mat Mat Min Zio Pro Fac Fac Upp Upp Zhi Pro Fac Combat Hostiles Destroyed 81 | . 11 26 8 . . 28 . 7 . . . 1 Melee 1 | . . . . . . . . . . . . 1 Guns 57 | . 11 25 8 . . 6 . 7 . . . . Cannons 18 | . . . . . . 18 . . . . . . AOE 4 | . . 1 . . . 3 . . . . . . Classes Destroyed 16 | 1 7 3 . . . 5 . . . . . . Worker 4 | . . 1 2 . . 1 . . . . . . Builder 3 | . 1 1 . . . 1 . . . . . . Tunneler 4 | 3 . . 1 . . . . . . . . . Hauler 8 | . 2 5 . . . 1 . . . . . . Recycler 4 | . 1 2 1 . . . . . . . . . Mechanic 1 | . . . . . . 1 . . . . . . Operator 3 | . 2 1 . . . . . . . . . . Watcher 7 | . 1 2 . . . 2 . . . . . 2 Swarmer 24 | . 3 6 . . . 7 . 7 . . . 1 Grunt 38 | . 8 12 8 . . 10 . . . . . . Brawler 1 | . . . . . . 1 . . . . . . Duelist 2 | . . 2 . . . . . . . . . . Sentry 8 | . . 6 . . . 2 . . . . . . Specialist 2 | . . . . . . 2 . . . . . . Programmer 5 | . . . . . . 5 . . . . . . Heavy 1 | . . . . . . 1 . . . . . . Best Kill Streak 6 | 2 6 5 2 . . 6 . 4 . . . 1 Combat Bots Only 6 | . 5 4 2 . . 6 . 4 . . . 1 Max Kills in Single Turn 3 | 1 1 2 1 . . 3 . 1 . . . 1 Gunslinging . | . . . . . . . . . . . . . Exploded 3 | . . 1 . . . 3 . . . . . . Melee 1 | . . . . . . . . . . . . 1 Uniques/NPCs Destroyed . | . . . . . . . . . . . . . Combat | -11 -10 -9 -9 -7 -6 -6 -5 -5 -5 -5 -4 -4 -------- Run | Scr Mat Mat Min Zio Pro Fac Fac Upp Upp Zhi Pro Fac Damage Taken 8390 | . 651 1020 210 . 297 3312 . 327 203 . 722 1648 Core 2690 | . 206 181 40 . 71 485 . 70 174 . 299 1164 Absorbed by Shields . | . . . . . . . . . . . . . Redirected to Shielding 706 | . . 54 8 . 10 310 . 60 . . 228 36 Regen/Repaired (Parts) 238 | . 56 . . . . 182 . . . . . . Core Remaining (%) 46 | 100 17 . . . 27 42 . . . . 45 . Volleys Fired 320 | 10 62 76 21 . 3 111 1 24 . 10 1 1 Largest 2 | 2 2 2 2 . 2 2 1 1 . 1 1 1 Hottest 130 | 70 130 130 130 . 130 115 60 24 . 60 60 60 Shots Fired 559 | 20 124 147 42 . 6 183 1 24 . 10 1 1 Gun 430 | 20 124 142 42 . 6 72 . 24 . . . . Cannon 124 | . . . . . . 111 1 . . 10 1 1 Launcher . | . . . . . . . . . . . . . Special 5 | . . 5 . . . . . . . . . . Kinetic 92 | 10 37 . . . . 8 1 24 . 10 1 1 Thermal 467 | 10 87 147 42 . 6 175 . . . . . . Explosive . | . . . . . . . . . . . . . Electromagnetic . | . . . . . . . . . . . . . Robot Hit Streak 25 | 7 11 25 13 . . 17 . 7 . 6 . . Robot Miss Streak 9 | 3 6 9 4 . . 3 1 7 . 1 . . Penetration Max . | . . . . . . . . . . . . . Secondary Targets 6 | . 3 2 1 . . . . . . . . . Max Gunslinging Chain 1 | . 1 1 1 . . . . . . . . . Shots Hit Robots 422 | 14 84 133 40 . . 114 . 20 . 8 6 3 Core Hits 331 | 5 48 159 51 . . 47 . 14 . 4 . 3 Critical Kills . | . . . . . . . . . . . . . Critical Parts Destroyed . | . . . . . . . . . . . . . Critical Strikes 9 | . 1 . . . . 5 . . . 2 1 . Burn 6 | . 1 . . . . 5 . . . . . . Blast 2 | . . . . . . . . . . 2 . . Sever 1 | . . . . . . . . . . . 1 . Melee Attacks 26 | . . . . . . 10 . . . . 8 8 Impact . | . . . . . . . . . . . . . Slashing 18 | . . . . . . 10 . . . . 8 . Piercing 8 | . . . . . . . . . . . . 8 Sneak Attacks 1 | . . . . . . 1 . . . . . . Combat Hostiles . | . . . . . . . . . . . . . Follow-up Attacks . | . . . . . . . . . . . . . Damage Inflicted 8425 | 152 961 1921 513 . . 3698 . 327 . 493 206 154 Guns 4814 | 152 961 1714 513 . . 1147 . 327 . . . . Cannons 2466 | . . . . . . 1973 . . . 493 . . Explosions 459 | . . 163 . . . 296 . . . . . . Melee 638 | . . . . . . 278 . . . . 206 154 Ramming 4 | . . . . . . 4 . . . . . . Kinetic 1461 | 51 184 . . . . 406 . 327 . 493 . . Thermal 6026 | 101 777 1921 513 . . 2714 . . . . . . Explosive 296 | . . . . . . 296 . . . . . . Electromagnetic . | . . . . . . . . . . . . . Impact . | . . . . . . . . . . . . . Slashing 484 | . . . . . . 278 . . . . 206 . Piercing 154 | . . . . . . . . . . . . 154 Highest Corruption 4 | . . . . . . 4 . . . . 3 2 Average Corruption 2 | . . . . . . 2 . . . . 2 1 Corruption Purged . | . . . . . . . . . . . . . Corruption Blocked . | . . . . . . . . . . . . . Effects 24 | . . . . . . 21 . . . . 3 . Message Errors 4 | . . . . . . 3 . . . . 1 . Matter Fused 9 | . . . . . . 8 . . . . 1 . Heat Flow Errors 3 | . . . . . . 3 . . . . . . Energy Discharges 2 | . . . . . . 2 . . . . . . Data Loss (minor) 1 | . . . . . . 1 . . . . . . Data Loss (major) 1 | . . . . . . . . . . . 1 . Misfires 2 | . . . . . . 2 . . . . . . Weapon Failures 2 | . . . . . . 2 . . . . . . Overload Shots 1 | . . . . . . 1 . . . . . . Overflow Damage 241 | . . . . . . 113 . . . 86 42 . Projectiles 128 | . . . . . . 42 . . . 86 . . Explosions . | . . . . . . . . . . . . . Melee 113 | . . . . . . 71 . . . . 42 . Knockbacks 2 | . . . . . . 1 . . . 1 . . Impact . | . . . . . . . . . . . . . Kinetic 2 | . . . . . . 1 . . . 1 . . Secondary . | . . . . . . . . . . . . . Self-Inflicted Damage 107 | . . 107 . . . . . . . . . . Shots 2 | . . 2 . . . . . . . . . . Rammed . | . . . . . . . . . . . . . Targets Rammed 1 | . . . . . . 1 . . . . . . Kicked 1 | . . . . . . 1 . . . . . . Crushed . | . . . . . . . . . . . . . Highest Temperature 302 | 50 302 198 198 . . 138 . . . . . 43 Average Temperature 75 | 22 95 74 59 . . 54 . . . . . 43 Received Heat Transfer 1756 | . 369 249 114 . 51 687 . . 45 . 75 166 Effects 1 | . 1 . . . . . . . . . . . Energy Bleed 1 | . 1 . . . . . . . . . . . Siege Activations . | . . . . . . . . . . . . . Robots Corrupted . | . . . . . . . . . . . . . Combat Hostiles . | . . . . . . . . . . . . . Parts Fried . | . . . . . . . . . . . . . Impact Corruptions . | . . . . . . . . . . . . . Robots Melted 1 | . . . . . . 1 . . . . . . Combat Hostiles 1 | . . . . . . 1 . . . . . . Parts Melted 19 | . 4 3 . . . 12 . . . . . . Heat Transferred 9104 | 296 1699 2398 615 . . 4096 . . . . . . Parts Sabotaged . | . . . . . . . . . . . . . Parts Stolen . | . . . . . . . . . . . . . Parts Stripped . | . . . . . . . . . . . . . Power Chain Reactions . | . . . . . . . . . . . . . Missiles Intercepted . | . . . . . . . . . . . . . Alert | -11 -10 -9 -9 -7 -6 -6 -5 -5 -5 -5 -4 -4 ------- Run | Scr Mat Mat Min Zio Pro Fac Fac Upp Upp Zhi Pro Fac Peak Influence 696 | 15 201 517 311 . . 696 345 . . . . 421 Initial 340 | . 9 29 181 . . 84 340 . . . . 75 Average 218 | 6 53 381 101 . . 260 341 . . . . 242 Maximum Alert Level 2 | . 1 2 1 . . 2 1 . . . . 2 Low Security (%) 51 | 100 98 4 88 . . 43 . . . . . 36 Level 1 29 | . 1 50 11 . . 34 100 . . . . 40 Level 2 18 | . . 45 . . . 22 . . . . . 22 Level 3 . | . . . . . . . . . . . . . Level 4 . | . . . . . . . . . . . . . Level 5 . | . . . . . . . . . . . . . High Security . | . . . . . . . . . . . . . Max Security . | . . . . . . . . . . . . . Squads Dispatched 20 | . 3 2 . . . 12 . . . . . 3 Investigation 8 | . 1 1 . . . 4 . . . . . 2 Extermination 5 | . . . . . . 5 . . . . . . Reinforcement 6 | . 2 1 . . . 3 . . . . . . Assault 1 | . . . . . . . . . . . . 1 Garrison . | . . . . . . . . . . . . . Intercept . | . . . . . . . . . . . . . Searches Triggered 1 | . . . . . . . . . . . . 1 Construction Impeded . | . . . . . . . . . . . . . Haulers Reinforced . | . . . . . . . . . . . . . Active Scanning Responses . | . . . . . . . . . . . . . Cargo Convoy Interrupts . | . . . . . . . . . . . . . Stealth | -11 -10 -9 -9 -7 -6 -6 -5 -5 -5 -5 -4 -4 --------- Run | Scr Mat Mat Min Zio Pro Fac Fac Upp Upp Zhi Pro Fac Distress Signals 13 | . 3 3 . . . 4 . . . . . 3 Communications Jammed . | . . . . . . . . . . . . . Distress Signals . | . . . . . . . . . . . . . Times Spotted 204 | . 24 37 10 . 10 51 . 14 5 . 14 39 Peak Tracking Total 13 | . 4 4 3 . 9 6 . 5 5 . 8 13 Tactical Retreats 20 | . . . 1 . 3 3 . 2 1 . 5 5 Traps | -11 -10 -9 -9 -7 -6 -6 -5 -5 -5 -5 -4 -4 ------- Run | Scr Mat Mat Min Zio Pro Fac Fac Upp Upp Zhi Pro Fac Traps Triggered 12 | . 2 5 . . . 5 . . . . . . Indirectly . | . . . . . . . . . . . . . Trap Hack Attempts . | . . . . . . . . . . . . . Triggered . | . . . . . . . . . . . . . Disarmed . | . . . . . . . . . . . . . Reprogrammed . | . . . . . . . . . . . . . Reused . | . . . . . . . . . . . . . Traps Extracted . | . . . . . . . . . . . . . Installed . | . . . . . . . . . . . . . Triggered . | . . . . . . . . . . . . . Machines | -11 -10 -9 -9 -7 -6 -6 -5 -5 -5 -5 -4 -4 ---------- Run | Scr Mat Mat Min Zio Pro Fac Fac Upp Upp Zhi Pro Fac Machines Disabled 10 | . 1 2 . . . 5 . . . 1 1 . Max in Single Turn 2 | . 1 2 . . . 2 . . . 1 1 . Garrison Access 1 | . . . . . . . . . . . . 1 Machines Sabotaged . | . . . . . . . . . . . . . Garrisons Compromised . | . . . . . . . . . . . . . Overloaded Fab Kills . | . . . . . . . . . . . . . Hacking | -11 -10 -9 -9 -7 -6 -6 -5 -5 -5 -5 -4 -4 --------- Run | Scr Mat Mat Min Zio Pro Fac Fac Upp Upp Zhi Pro Fac Machines Accessed 31 | . 4 4 . . . 12 2 1 . 4 . 4 Terminals 19 | . 3 3 . . . 8 2 . . . . 3 Fabricators . | . . . . . . . . . . . . . Repair Stations 4 | . 1 . . . . 3 . . . . . . Recycling Units . | . . . . . . . . . . . . . Scanalyzers 2 | . . 1 . . . . . . . . . 1 Garrison Access 1 | . . . . . . 1 . . . . . . Total Hacks 82 | . 8 6 . . . 30 9 1 . 17 . 11 Successful 66 | . 8 6 . . . 18 5 1 . 17 . 11 Failed 15 | . . . . . . 12 3 . . . . . Catastrophic 1 | . . . . . . 1 . . . . . . Database Lockouts 1 | . . . . . . . 1 . . . . . Manual 52 | . 4 6 . . . 24 10 . . . . 8 Terminals 49 | . 4 5 . . . 22 9 . . . . 9 Fabricators . | . . . . . . . . . . . . . Repair Stations 11 | . 4 . . . . 7 . . . . . . Recycling Units . | . . . . . . . . . . . . . Scanalyzers 3 | . . 1 . . . . . . . . . 2 Garrison Access 1 | . . . . . . 1 . . . . . . Terminal Hacks 24 | . . . . . . 1 2 1 . 17 . 3 Record 5 | . . . . . . . . . . 5 . . Part Schematic 7 | . . . . . . 1 1 . . 4 . 1 Robot Analysis 4 | . . . . . . . . . . 4 . . Prototype ID Bank 5 | . . . . . . . . . . 4 . 1 Open Door 1 | . . . . . . . . 1 . . . . Branch Access Points 1 | . . . . . . . . . . . . 1 Locate Traps 1 | . . . . . . . 1 . . . . . Fabricator Hacks . | . . . . . . . . . . . . . Repair Station Hacks 8 | . 4 . . . . 4 . . . . . . Scan Component 4 | . 2 . . . . 2 . . . . . . Repair 4 | . 2 . . . . 2 . . . . . . Recycling Unit Hacks . | . . . . . . . . . . . . . Scanalyzer 1 | . . . . . . . . . . . . 1 Insert Component 1 | . . . . . . . . . . . . 1 Garrison Access Hacks . | . . . . . . . . . . . . . Unauthorized Hacks 32 | . 4 6 . . . 12 3 . . . . 7 Terminals 29 | . 4 5 . . . 11 3 . . . . 6 Track 3 | . . . . . . 2 . . . . . 1 Botnet 19 | . 3 3 . . . 8 2 . . . . 3 Operators 7 | . 1 2 . . . 1 1 . . . . 2 Fabricators . | . . . . . . . . . . . . . Repair Stations . | . . . . . . . . . . . . . Recycling Units . | . . . . . . . . . . . . . Scanalyzers 2 | . . 1 . . . . . . . . . 1 Extract 2 | . . 1 . . . . . . . . . 1 Garrison Access 1 | . . . . . . 1 . . . . . . Reprogram 1 | . . . . . . 1 . . . . . . Data Cores Recovered . | . . . . . . . . . . . . . Used . | . . . . . . . . . . . . . Hacking Detections 21 | . 2 3 . . . 12 2 . . . . 2 Full Trace Events 4 | . . . . . . 3 . . . . . 1 Feedback Events . | . . . . . . . . . . . . . Feedback Blocked . | . . . . . . . . . . . . . Robot Schematics Acquired . | . . . . . . . . . . . . . Robots Built . | . . . . . . . . . . . . . Authchips . | . . . . . . . . . . . . . Time . | . . . . . . . . . . . . . Total Robot Build Rating . | . . . . . . . . . . . . . Part Schematics Acquired 13 | . . 5 . . . 1 1 . . 4 . 2 Parts Built . | . . . . . . . . . . . . . Authchips . | . . . . . . . . . . . . . Time . | . . . . . . . . . . . . . Total Part Build Rating . | . . . . . . . . . . . . . Parts Repaired 4 | . 2 . . . . 2 . . . . . . Time 163 | . 58 . . . . 105 . . . . . . Parts Recycled . | . . . . . . . . . . . . . Recycled Matter . | . . . . . . . . . . . . . Retrieved Matter . | . . . . . . . . . . . . . Retrieved Components . | . . . . . . . . . . . . . Parts Scanalyzed . | . . . . . . . . . . . . . Part Schematics Acquired . | . . . . . . . . . . . . . Parts Damaged . | . . . . . . . . . . . . . Bothacking | -11 -10 -9 -9 -7 -6 -6 -5 -5 -5 -5 -4 -4 ------------ Run | Scr Mat Mat Min Zio Pro Fac Fac Upp Upp Zhi Pro Fac Used RIF Installer . | . . . . . . . . . . . . . Robots Hacked . | . . . . . . . . . . . . . Non-combat . | . . . . . . . . . . . . . Combat . | . . . . . . . . . . . . . Robot Hacks Applied . | . . . . . . . . . . . . . Relay Couplers Released 2 | . . . . . . . . . . . . 2 Machine Destruction 2 | . . . . . . . . . . . . 2 Fabnet Peak Effective % . | . . . . . . . . . . . . . Robots Rewired . | . . . . . . . . . . . . . Allies Hacked . | . . . . . . . . . . . . . Hacks Repelled . | . . . . . . . . . . . . . Allies | -11 -10 -9 -9 -7 -6 -6 -5 -5 -5 -5 -4 -4 -------- Run | Scr Mat Mat Min Zio Pro Fac Fac Upp Upp Zhi Pro Fac Total Allies 3 | . . . . . . 3 . . . . . . Largest Group 3 | . . . . . . 3 . . . . . . Highest-Rated Group 87 | . . . . . . 87 . . . . . . Highest-Rated Ally 29 | . . . . . . 29 . . . . . . Total Orders . | . . . . . . . . . . . . . Ally Attacks 26 | . . . . . . 26 . . . . . . Total Damage 371 | . . . . . . 371 . . . . . . Kills 5 | . . . . . . 5 . . . . . . Allies Corrupted . | . . . . . . . . . . . . . Allies Melted . | . . . . . . . . . . . . . Intel | -11 -10 -9 -9 -7 -6 -6 -5 -5 -5 -5 -4 -4 ------- Run | Scr Mat Mat Min Zio Pro Fac Fac Upp Upp Zhi Pro Fac Robot Analysis Total 4 | . . . . . . . . . . 4 . . Derelict Logs Recovered 8 | . . . 2 . 1 . . 1 1 . 3 . Drone Launches . | . . . . . . . . . . . . . Drone Recoveries . | . . . . . . . . . . . . . Exploration | -11 -10 -9 -9 -7 -6 -6 -5 -5 -5 -5 -4 -4 ------------- Run | Scr Mat Mat Min Zio Pro Fac Fac Upp Upp Zhi Pro Fac Turns Passed 11736 | 161 1613 1954 1411 1667 292 2754 225 695 252 144 283 285 Spaces Moved 8411 | 82 598 863 690 1040 459 2019 312 866 316 199 432 535 Core 583 | 9 2 3 . . . 5 . 22 72 103 160 207 Treads 3306 | 73 596 860 690 1040 47 . . . . . . . Legs 1012 | . . . . . . 991 21 . . . . . Wheels . | . . . . . . . . . . . . . Hover 952 | . . . . . . . . 340 244 96 272 . Flight 2558 | . . . . . 412 1023 291 504 . . . 328 Fastest Speed 32 | 50 160 160 160 160 32 32 45 45 46 50 50 40 Average Speed 105 | 147 160 162 160 160 45 102 56 49 50 54 57 44 Slowest Speed 550 | 160 250 550 160 160 160 550 205 150 150 60 120 150 Overloaded Moves 2 | . . . . . . . . . 2 . . . Propulsion Burnouts . | . . . . . . . . . . . . . Robots Hopped 20 | . . . . . 4 10 . 2 . . . 4 Cave-ins Triggered . | . . . . . . . . . . . . . Exploration Rate (%) 55 | 5 80 65 97 79 63 50 7 88 49 60 60 18 Regions Visited 12 Branch Regions 7 Pre-discovered Areas 8 | . . . 2 3 . . . . . 3 . . Known Exits Taken 6 | . . 1 1 1 . 1 1 1 . . . . Unknown Exits Taken 6 | 1 1 . . . 1 . . . 1 1 1 . Scrap Searched 13 | . . . 3 2 2 . . 2 1 . 3 . Spaces Dug 16 | . . . . . . 12 . . . . . 4 Terrain Destroyed 88 | . . 21 . . . 63 . . . . . 4 Melee 3 | . . . . . . . . . . . . 3 Projectile 35 | . . . . . . 34 . . . . . 1 AOE 50 | . . 21 . . . 29 . . . . . . Terrain Rammed . | . . . . . . . . . . . . . Walls Destroyed . | . . . . . . . . . . . . . Machines Disabled . | . . . . . . . . . . . . . Actions | -11 -10 -9 -9 -7 -6 -6 -5 -5 -5 -5 -4 -4 --------- Run | Scr Mat Mat Min Zio Pro Fac Fac Upp Upp Zhi Pro Fac Total 10634 | 101 1140 1262 955 1044 539 2491 362 1104 410 217 454 555 Wait 1548 | . 429 258 241 1 57 229 27 212 88 . 4 2 Move 8361 | 81 597 862 689 1039 451 1999 311 861 315 198 431 527 Hop 18 | . . . . . 3 9 . 2 . . . 4 Pick Up 60 | 4 20 10 . 2 1 19 . . 2 1 1 . Fast Attach 88 | 6 9 20 2 . . 27 5 4 . 5 3 7 Attach 41 | . 1 6 . . 11 13 3 . 1 1 2 3 Detach 14 | . . . . . 2 5 2 . 1 1 1 2 Swap 28 | . 6 9 . . . 12 . . . . . 1 Drop 106 | . 16 21 2 2 11 33 13 1 3 1 3 . Fire 320 | 10 62 76 21 . 3 111 1 24 . 10 1 1 Melee 26 | . . . . . . 10 . . . . 8 8 Ram . | . . . . . . . . . . . . . Kick 1 | . . . . . . 1 . . . . . . Crush . | . . . . . . . . . . . . . Escape Stasis 23 | . . . . . . 23 . . . . . . Rewire . | . . . . . . . . . . . . . Trap . | . . . . . . . . . . . . . Miscellaneous . | . . . . . . . . . . . . . Route ------- -11/Scrapyard -10/Materials (discovered 2 exits: *Mat / [*Min]) -9/Materials (discovered 3 exits: *Mat / *Min x2) -9/Mines (discovered 3 exits: *Mat x2 / *Zio) -7/Zion -6/Proximity Caves -6/Factory (discovered 4 exits: *Fac x2 / Low x2) -5/Factory (discovered 2 exits: *Upp x2) -5/Upper Caves -5/Upper Caves -5/Zhirov -4/Proximity Caves -4/Factory (discovered 5 exits: *Res / Upp x2 / Ext x2) History --------- Turn | Location | Event 4 | -11/Scrapyard | Discovered new exit (range 15) 162 | -11/Scrapyard | Entered Materials 319 | -10/Materials | Build established: Mutant 455 | -10/Materials | Core integrity fell below 50% 611 | -10/Materials | Discovered new exit (range 13) 714 | -10/Materials | Discovered new exit (range 12) 1476 | -10/Materials | Core integrity fell below 20% 1648 | -10/Materials | Repaired Spread Laser 1676 | -10/Materials | Repaired Ion Engine 1775 | -10/Materials | Entered another Materials area 1775 | -9/Materials | Evolved 2 slots: Utility x2 2753 | -9/Materials | Discovered new exit (range 13) 2819 | -9/Materials | Build established: Scavenger-Mutant 2908 | -9/Materials | Discovered new exit (range 9) 2925 | -9/Materials | Identified exit to Mines 3223 | -9/Materials | Discovered new exit (range 16) 3729 | -9/Materials | Entered Mines 3831 | -9/Mines | Learned location of Zion (-7) 3948 | -9/Mines | Discovered new exit (range 9) 3969 | -9/Mines | Core integrity fell below 50% 4031 | -9/Mines | Identified exit to Materials 4277 | -9/Mines | Discovered exit to Materials (range 12) 4336 | -9/Mines | A Derelict revealed a hidden shortcut to a safe place 4343 | -9/Mines | Identified exit to Zion 4538 | -9/Mines | Excavation squad dispatched 4538 | -9/Mines | A large section of the Mines collapsed 5140 | -9/Mines | Entered Zion 5374 | -7/Zion | Discovered new exit (range 16) 5593 | -7/Zion | Learned location of Warlord (-4) 5621 | -7/Zion | Learned location of Armory (-3) 6805 | -7/Zion | Identified exit to Proximity Caves 6807 | -7/Zion | Entered Proximity Caves 6893 | -6/Proximity Caves | Spotted B-75 Beast 7004 | -6/Proximity Caves | Lost 3 parts (2n1u) 7049 | -6/Proximity Caves | Discovered new exit (range 3) 7050 | -6/Proximity Caves | Learned 8 Factory zone layouts 7099 | -6/Proximity Caves | Entered Factory 7099 | -6/Factory | Evolved 6 slots: Utility x6 7100 | -6/Factory | Identified exit to Lower Caves 7297 | -6/Factory | Discovered new exit (range 6) 7303 | -6/Factory | Identified exit to Factory 7946 | -6/Factory | Repaired Cld. Particle Cannon 8675 | -6/Factory | Build established: Hacker-Mutant 9190 | -6/Factory | Repaired Cld. Particle Cannon 9659 | -6/Factory | Discovered exit to Factory (range 8) 9685 | -6/Factory | Core integrity fell below 50% 9702 | -6/Factory | Lost 9 parts (1p3n3u2w) 9723 | -6/Factory | Found Prototype Device 9723 | -6/Factory | Identified Active Sensor Suite 9853 | -6/Factory | Entered another Factory area 9853 | -5/Factory | Evolved 2 slots: Utility x2 9977 | -5/Factory | Discovered new exit (range 11) 9982 | -5/Factory | Discovered new exit (range 10) 9987 | -5/Factory | Identified exit to Upper Caves 10024 | -5/Factory | Central database locked down 10078 | -5/Factory | Entered Upper Caves 10223 | -5/Upper Caves | Build established: Hacker-Scout 10315 | -5/Upper Caves | Encountered a Warlord checkpoint 10656 | -5/Upper Caves | Discovered new exit (range 15) 10664 | -5/Upper Caves | Identified exit to Upper Caves 10676 | -5/Upper Caves | Learned Factory interactive machine intel 10773 | -5/Upper Caves | Entered another Upper Caves area 10842 | -5/Upper Caves | Learned Factory trap positions 10992 | -5/Upper Caves | Attracted the attention of an 0b10 checkpoint 11013 | -5/Upper Caves | Discovered new exit (range 7) 11025 | -5/Upper Caves | Entered Zhirov 11025 | -5/Zhirov | Discovered new exit (range 3) 11035 | -5/Zhirov | Met Zhirov 11046 | -5/Zhirov | Learned location of Quarantine (-2) 11046 | -5/Zhirov | Learned location of Testing (-3) 11046 | -5/Zhirov | Learned location of Command (-1) 11049 | -5/Zhirov | Zhirov requested help retrieving the SGEMP Prototype 11058 | -5/Zhirov | Found Alien Artifact 11058 | -5/Zhirov | Identified Integrated Reactor 11058 | -5/Zhirov | Installed Integrated Reactor, increased core energy generation (+10) 11065 | -5/Zhirov | Found Alien Artifact 11169 | -5/Zhirov | Entered Proximity Caves 11181 | -4/Proximity Caves | Spotted B-86 Titan 11183 | -4/Proximity Caves | Learned location of 1 exit from Upper Caves 11240 | -4/Proximity Caves | Learned Research stockpile data 11287 | -4/Proximity Caves | Build established: Hacker-Mutant 11367 | -4/Proximity Caves | Attracted the attention of an 0b10 checkpoint 11377 | -4/Proximity Caves | Core integrity fell below 50% 11394 | -4/Proximity Caves | Learned 4 Research zone layouts 11401 | -4/Proximity Caves | Lost 3 parts (1n2u) 11432 | -4/Proximity Caves | Acquired the password to a Derelict Tinkerer's latest research 11449 | -4/Proximity Caves | Discovered new exit (range 7) 11452 | -4/Proximity Caves | Entered Factory 11452 | -4/Factory | Evolved 2 slots: Utility x2 11453 | -4/Factory | Loaded intel: 130 trap records 11454 | -4/Factory | Loaded intel: 52 interactive machine locations 11491 | -4/Factory | Identified exit to Upper Caves 11491 | -4/Factory | Identified exit to Extension 11498 | -4/Factory | Spotted B-86 Titan 11536 | -4/Factory | Identified Transdimensional Reconstructor 11556 | -4/Factory | Discovered new exit (range 13) 11561 | -4/Factory | Identified exit to Research 11690 | -4/Factory | Core integrity fell below 50% 11702 | -4/Factory | Search patrols dispatched 11717 | -4/Factory | Core integrity fell below 20% 11737 | -4/Factory | Destroyed by Y-64 Sentinel with KE Penetrator Last Messages --------------- 11702_ U-05 Engineer lays Concrete. 11702_ K-01 Serf collects debris. 11703_ U-05 Engineer lays Concrete. 11704_ U-05 Engineer destroyed. 11704_ U-05 Engineer lays Concrete. 11708_ W-44 Eye destroyed. 11711_ Slug penetrates Subcomponent Replicator. 11711_ Subcomponent Replicator disabled. 11711_ Acquired 40 matter. 11716_ Authchip [Device] destroyed. 11718_ Slug penetrates Subcomponent Replicator. 11718_ Slug penetrates Wall. 11718_ Subcomponent Replicator disabled. 11720_ K-01 Serf cleans the Assembly Bed. 11725_ Gravity Neutralizer destroyed. 11730_ Slug penetrates Wall. 11732_ W-44 Eye destroyed. 11733_ Force Lance destroyed. 11734_ Slug penetrates Wall. 11735_ Acquired 45 matter. Map ----- +----------------------------------------------------+ | ?????????????????????????????????????????????????? | | ?????????????????????????????????????????????????? | | ?????????????????????????????????????????????????? | | ?????????????????????????????????????????????????? | | ?????????????????????????????????????????????????? | | ?????????????????????????????????????????????????? | | ?????????????????????????????????????????????????? | | ?????????????????????????????????????????????????? | | ?????????????????????????????????????????????????? | | ?????????????????????????????????????????????????? | | ????????????????????????? ???????????????????????? | | ????????????????????????? ???????????????????????? | | ????????????????????????? ???????????????????????? | | ????????????????????????? ????????^??????????????? | | ????????????????????????? ???????????????????????? | | ????????????????????????? ???????????????????????? | | ????????????????????????? ???????????????????????? | | ????????????????????????# #??????????????????????? | | ??^?????????????????????# #??????????????????????? | | ??^^^?^^????????????????# #??????????????????????? | | ????????????????????????# ??????????????????????? | | ????????????????????????# #??????????????????????# | | ????????????????????????# #??????????????????????# | | ????????????????????????# #??????????????????????# | | ????????????????????????# #??????????????????????# | | ?????? ########+#?????##@##?????????????????????# | | ????? ######= #?????????????????????# | | ??^?? !%Y #?????????????????????# | | ????????"" ^ ##! #?????????????????????# | | ????????"" ### #######???????############### | | ??????""""^ #?# #?????????##### | | ???????""" ###/###########T ## ############# | | ??????? # # ## # | | ???????""" # ! # ## """ # | | ?????"""""^^ # # ### !== """ # | | # ^ """""" # ## #???!== """ # | | ? """""" # ## #????? ??# | | + # ## ########+##### | | # ] / ## | | # # ## ####"############ | | # # ## #??#"############ | | # + ## #??# # | | # #####"#### ## #??# # | | ?? ??# # ## #??# # | | ???? # """" ############### #??# """ # | | # # """"" ## #????# #??# ! """"" # | | # + """ ## #????# #??# ! """"" / | | # # !## ######/#### # | | # # """" ## #^ = # = """ # | | # # """""*########+# ^ # """"" # | +----------------------------------------------------+ Best States ------------- Heat Dissipation 50 Coolant Potential 50 Energy Generation 18 Energy Capacity 310 Matter Stores 332 Matter Capacity 450 Sight Range 18 Robot Scan Range 20 Terrain Scan Density 10 Cloak Strength 2 Additional Mass Support 12 Base Temperature (-) 150 Armor Coverage 225 Propulsion Shielding 90 Utility Shielding 90 Weapon Shielding 33 Weapon Cycling 30 Evasion (%) 71 Targeting Accuracy 6 Melee Accuracy 5 Target Analysis 8 Armor Integrity Analysis 30 Recoil Reduction 2 Particle Charging 20 Offensive Hacking 48 Authchip Count 2 Item Schematics ----------------- Signal Interpreter | -9/Materials | Extracted Maul | -9/Materials | Extracted Power Shielding | -9/Materials | Extracted Mining Laser | -9/Materials | Extracted Imp. Ion Engine | -9/Materials | Extracted Gatling Laser | -6/Factory | Hacked Hvy. Assault Cannon | -5/Factory | Hacked Assault Drone Bay | -5/Zhirov | Free Exp. Heat Sink | -5/Zhirov | Free Exp. Optical Array | -5/Zhirov | Free Imp. Arc Thrower | -5/Zhirov | Free Biometal Leg | -4/Factory | Hacked Field Propulsion Drive | -4/Factory | Extracted Robot Schematics ------------------ None Fabricated ------------ Nothing Alien Tech Used ----------------- Integrated Reactor Achievements -------------- None Challenges ------------ None Game ------ Seed ZioniteOmegaJammer Manual? 0 Play Time 01:14:30 Cumulative 301.9 hours Start 2022.06.02 @ 09:44:21 End 2022.06.03 @ 12:31:46 Sessions 3 Manual Loads 0 Difficulty Rogue Special Mode None Game No. 543 Rogue 388 Adventurer 148 Explorer 7 Win Type - Total 10 Types 8/0/1/1/0/0/0/0/0 Lore% 73 Gallery% 85 Achievement% 66 Wizard Run 0 Options --------- ASCII 0 Keyboard 0 Movement Numpad Keybinds 0 Fullscreen 1 Font 18/SmallcapsGlow Map View 76x50 Tactical HUD 1 Map Filters NONE Filters NONE Steam 1 RUN: f3cca266-3dab-4197-8415-8d67feed56dd